Cogmind - Beta 9.6 @@@ ROGUE MODE // 2020.06.04 @ 17:55:17 Player: Wololo Result: Destroyed by S-10 Pest with Light Assault Rifle Performance ------------- Evolutions (0) 0 Regions Visited (1) 200 Robots Destroyed (6) 30 Value Destroyed (136) 136 Prototype IDs (2) 40 Alien Tech Used (0) 0 Bonus (0) 0 TOTAL SCORE: 406 Bonus ------- None Cogmind --------- Core Integrity 0/250 Matter 230/300 Energy 69/125 System Corruption 0% Temperature Cool (392) Movement Rolling (90) Location -10/Materials Parts ------- > --- POWER (1) -------- Light Ion Engine > --- PROPULSION (2) --- Armored Wheel Armored Wheel > --- UTILITY (2) ------ Visual Processing Unit Armor Integrity Analyzer > --- WEAPON (2) ------- Particle Gun Particle Gun > --- INVENTORY (4) ---- Small Storage Unit Peak State ------------ > --- POWER ------------ Light Ion Engine > --- PROPULSION ------- Armored Wheel VTOL Module > --- UTILITY ---------- Visual Processing Unit Armor Integrity Analyzer > --- WEAPON ----------- Particle Gun Particle Gun > --- INVENTORY -------- Small Storage Unit [Rating: 13] Favorites ----------- Power Light Ion Engine Engine Light Ion Engine Propulsion VTOL Module Wheel Compact Wheel Flight Unit VTOL Module Utility Armor Integrity Analyzer Storage Small Storage Unit Processor Armor Integrity Analyzer Weapon Light Assault Rifle Energy Gun Beam Rifle Energy Cannon Beam Cannon Ballistic Gun Light Assault Rifle Build | -11 -10 ------- Run | Scr Mat Slots Evolved . | . . Power . | . . Propulsion . | . . Utility . | . . Weapon . | . . Parts Attached 17 | 5 12 Power 2 | 1 1 Engine 2 | 1 1 Core . | . . Reactor . | . . Propulsion 7 | 2 5 Treads . | . . Leg . | . . Wheel 4 | 2 2 Hover . | . . Flight 3 | . 3 Utility 3 | 1 2 Device . | . . Storage 1 | 1 . Processor 2 | . 2 Hackware . | . . Protection . | . . Artifact . | . . Weapon 5 | 1 4 Energy Gun 3 | . 3 Energy Cannon 1 | . 1 Ballistic Gun 1 | 1 . Ballistic Cannon . | . . Launcher . | . . Special Weapon . | . . Impact Weapon . | . . Slashing Weapon . | . . Piercing Weapon . | . . Special Melee Weapon . | . . Unidentified Prototypes . | . . Parts Lost 6 | . 6 Power 1 | . 1 Propulsion 2 | . 2 Utility . | . . Weapon 3 | . 3 Highest Loss Streak 6 | . 6 Average Slot Usage (%) 80 | . 80 Engine 13 | . 13 Wheel 2 | . 2 Flight 23 | . 23 Processor 13 | . 13 Energy Gun 12 | . 12 Ballistic Gun 12 | . 12 Naked Turns . | . . Heaviest Build 9 | 8 9 Greatest Support 32 | 32 32 Greatest Overweight (x) . | . . Average Overweight (x) . | . . Largest Inventory Capacity 6 | 6 6 Average Capacity 4 | 4 4 Most Carried 5 | 4 5 Average Carried 3 | 1 3 Final Capacity 6 | 6 4 Final Carried 1 | 1 1 Class Distribution -------------------- 100% | Mutant Dominant Class ---------------- Mutant | -10/Materials Resources | -11 -10 ----------- Run | Scr Mat Matter Collected 294 | 250 44 Remotely . | . . Salvage Created 174 | . 174 Parts 11 | . 11 Haulers Intercepted . | . . Recyclers Shooed . | . . Parts Field Recycled . | . . Retrieved Matter . | . . Parts Self-Destructed . | . . Prevented . | . . Kills | -11 -10 ------- Run | Scr Mat Combat Hostiles Destroyed 5 | . 5 Guns 4 | . 4 Cannons 1 | . 1 Classes Destroyed 3 | . 3 Worker 1 | . 1 Swarmer 2 | . 2 Grunt 3 | . 3 Best Kill Streak 3 | . 3 Combat Bots Only 2 | . 2 Max Kills in Single Turn 1 | . 1 Gunslinging . | . . Exploded . | . . Melee . | . . Uniques/NPCs Destroyed . | . . Combat | -11 -10 -------- Run | Scr Mat Damage Taken 713 | . 713 Core 257 | . 257 Absorbed by Shields . | . . Core Remaining (%) 100 | 100 . Volleys Fired 29 | . 29 Largest 2 | . 2 Hottest 130 | . 130 Shots Fired 51 | . 51 Gun 43 | . 43 Cannon 8 | . 8 Launcher . | . . Special . | . . Kinetic 16 | . 16 Thermal 35 | . 35 Explosive . | . . Electromagnetic . | . . Robot Hit Streak 8 | . 8 Robot Miss Streak 4 | . 4 Penetration Max . | . . Secondary Targets 1 | . 1 Max Gunslinging Chain 1 | . 1 Shots Hit Robots 18 | . 18 Core Hits 11 | . 11 Critical Hits . | . . Critical Kills . | . . Critical Parts Destroyed . | . . Melee Attacks . | . . Impact . | . . Slashing . | . . Piercing . | . . Sneak Attacks . | . . Combat Hostiles . | . . Follow-up Attacks . | . . Damage Inflicted 252 | . 252 Guns 205 | . 205 Cannons 36 | . 36 Explosions . | . . Melee . | . . Ramming 11 | . 11 Kinetic 40 | . 40 Thermal 201 | . 201 Explosive . | . . Electromagnetic . | . . Impact . | . . Slashing . | . . Piercing . | . . Highest Corruption . | . . Average Corruption . | . . Corruption Purged . | . . Overload Shots . | . . Overflow Damage . | . . Projectiles . | . . Explosions . | . . Melee . | . . Knockbacks . | . . Impact . | . . Kinetic . | . . Secondary . | . . Self-Inflicted Damage 5 | . 5 Shots . | . . Rammed 5 | . 5 Targets Rammed 5 | . 5 Kicked . | . . Crushed . | . . Highest Temperature 411 | . 411 Average Temperature 183 | . 183 Received Heat Transfer 63 | . 63 Effects 6 | . 6 Shutdowns 2 | . 2 Energy Bleed 2 | . 2 Matter Decay 2 | . 2 Siege Activations . | . . Robots Corrupted . | . . Combat Hostiles . | . . Parts Fried . | . . Impact Corruptions . | . . Robots Melted . | . . Combat Hostiles . | . . Parts Melted 1 | . 1 Heat Transferred 481 | . 481 Parts Sabotaged . | . . Parts Stolen . | . . Parts Stripped . | . . Power Chain Reactions . | . . Missiles Intercepted . | . . Alert | -11 -10 ------- Run | Scr Mat Peak Influence 85 | . 85 Average Influence 20 | . 22 Maximum Alert Level . | . . Low Security (%) 100 | 100 100 Level 1 . | . . Level 2 . | . . Level 3 . | . . Level 4 . | . . Level 5 . | . . High Security . | . . Max Security . | . . Squads Dispatched 2 | . 2 Investigation 1 | . 1 Extermination . | . . Reinforcement 1 | . 1 Assault . | . . Garrison . | . . Intercept . | . . Construction Impeded . | . . Haulers Reinforced . | . . Stealth | -11 -10 --------- Run | Scr Mat Distress Signals . | . . Communications Jammed . | . . Distress Signals . | . . Times Spotted 15 | . 15 Peak Tracking Total 6 | . 6 Tactical Retreats 3 | . 3 Traps | -11 -10 ------- Run | Scr Mat Traps Triggered . | . . Indirectly . | . . Trap Hack Attempts . | . . Triggered . | . . Disarmed . | . . Reprogrammed . | . . Reused . | . . Traps Extracted . | . . Installed . | . . Triggered . | . . Machines | -11 -10 ---------- Run | Scr Mat Machines Disabled . | . . Max in Single Turn . | . . Machines Sabotaged . | . . Garrisons Compromised . | . . Overloaded Fab Kills . | . . Fab Network Shutdowns . | . . Hacking | -11 -10 --------- Run | Scr Mat Machines Accessed 5 | . 5 Terminals 5 | . 5 Fabricators . | . . Repair Stations . | . . Recycling Units . | . . Scanalyzers . | . . Garrison Access . | . . Total Hacks 16 | . 16 Successful 6 | . 6 Failed 10 | . 10 Catastrophic 3 | . 3 Database Lockouts . | . . Manual . | . . Terminals 16 | . 16 Fabricators . | . . Repair Stations . | . . Recycling Units . | . . Scanalyzers . | . . Garrison Access . | . . Terminal Hacks 6 | . 6 Prototype ID Bank 1 | . 1 Alert Level 1 | . 1 Locate Traps 1 | . 1 Maintenance Status 1 | . 1 Transport Status 1 | . 1 Hauler Manifests 1 | . 1 Fabricator Hacks . | . . Repair Station Hacks . | . . Recycling Unit Hacks . | . . Scanalyzer . | . . Garrison Access Hacks . | . . Unauthorized Hacks . | . . Terminals . | . . Fabricators . | . . Repair Stations . | . . Recycling Units . | . . Scanalyzers . | . . Garrison Access . | . . Data Cores Recovered . | . . Used . | . . Hacking Detections 4 | . 4 Full Trace Events 1 | . 1 Feedback Events . | . . Feedback Blocked . | . . Robot Schematics Acquired . | . . Robots Built . | . . Matter . | . . Time . | . . Total Robot Build Rating . | . . Part Schematics Acquired . | . . Parts Built . | . . Matter . | . . Time . | . . Total Part Build Rating . | . . Parts Repaired . | . . Time . | . . Parts Recycled . | . . Recycled Matter . | . . Retrieved Matter . | . . Retrieved Components . | . . Parts Scanalyzed . | . . Part Schematics Acquired . | . . Parts Damaged . | . . Bothacking | -11 -10 ------------ Run | Scr Mat Used RIF Installer . | . . Robots Hacked . | . . Non-combat . | . . Combat . | . . Robot Hacks Applied . | . . Relay Couplers Released . | . . Robots Rewired . | . . Allies Hacked . | . . Hacks Repelled . | . . Allies | -11 -10 -------- Run | Scr Mat Total Allies . | . . Largest Group . | . . Highest-Rated Group . | . . Highest-Rated Ally . | . . Total Orders . | . . Ally Attacks . | . . Total Damage . | . . Kills . | . . Allies Corrupted . | . . Allies Melted . | . . Intel | -11 -10 ------- Run | Scr Mat Robot Analysis Total . | . . Derelict Logs Recovered . | . . Drone Launches . | . . Drone Recoveries . | . . Exploration | -11 -10 ------------- Run | Scr Mat Turns Passed 612 | 37 575 Spaces Moved 716 | 33 683 Core 14 | 12 2 Treads . | . . Legs . | . . Wheels 46 | 21 25 Hover . | . . Flight 656 | . 656 Fastest Speed 37 | 50 37 Average Speed 41 | 81 39 Slowest Speed 100 | 100 100 Overloaded Moves . | . . Propulsion Burnouts . | . . Robots Hopped 2 | . 2 Cave-ins Triggered . | . . Exploration Rate (%) 33 | 3 64 Regions Visited 1 Branch Regions . Pre-discovered Areas . | . . Known Exits Taken . | . . Unknown Exits Taken 1 | 1 . Scrap Searched . | . . Spaces Dug . | . . Terrain Destroyed . | . . Melee . | . . Projectile . | . . AOE . | . . Actions | -11 -10 --------- Run | Scr Mat Total 985 | 43 942 Wait 198 | . 198 Move 711 | 32 679 Hop 2 | . 2 Pick Up 18 | 6 12 Fast Attach . | . . Attach 17 | 5 12 Detach 1 | . 1 Swap . | . . Drop 4 | . 4 Fire 29 | . 29 Melee . | . . Ram 5 | . 5 Kick . | . . Crush . | . . Escape Stasis . | . . Rewire . | . . Trap . | . . Miscellaneous . | . . Route ------- -11/Scrapyard -10/Materials History --------- Turn | Location | Event 7 | -11/Scrapyard | Discovered new exit (range 16) 38 | -11/Scrapyard | Entered Materials 305 | -10/Materials | Build established: Mutant 555 | -10/Materials | Core integrity fell below 50% 588 | -10/Materials | Lost 6 parts (1p2n3w) 596 | -10/Materials | Core integrity fell below 20% 613 | -10/Materials | Destroyed by S-10 Pest with Light Assault Rifle Last Messages --------------- Overheating: Energy bleed (-7). Slammed into S-10 Pest. Critical hit. Broken Lgt. Ion Engine destroyed. Slammed into S-10 Pest. Connecting with Terminal... O-16 Technician uses terminal to summon reinforcements. ALERT: Hostiles spotted, dispatching reinforcements to Terminal M006. O-16 Technician locks terminal. Acquired Particle Gun. Acquired Visual Processing Unit. Acquired Arm. Wheel. Dropped VTOL Module. G-34 Mercenary destroyed. S-10 Pest destroyed. Switching to secondary target: S-10 Pest. K-01 Serf collects debris. K-01 Serf destroyed. Power failure, Lgt. Ion Engine shutdown. Overheating: Matter decay (-46). Map ----- +----------------------------------------------------+ | ???????????????????????????????????????????? | | ???????????????????????????????????######??? | | ???????????????????????????????????# #??? | | ????????????????????????? ?????????# #??? | | ????????????????????????# ?????????# #??? | | ????????????????????????# ?????????# #??? | | ????????????????????????# ?????????# #??? | | ????????????????????????# ?????????# #??? | | ????????????????????????# ?????????# #??? | | ????????????????????????# ?????????# #??? | | ????????????????????????# ########## #### | | ????????????????????????# ###+### | | ????????????????????????# | | ????????????????????????# """ | | ????????????????????????# """ | | ????????????????????????# """ ####### | | ????????????????????????# #?????### | | ????????????????????????# #?????? | | ??????????????????????? # !! #?????# | | ??????????????????????? # !! #?????# | | ?????????????????????#+## !% ##????# | | ??????????# ######## + | | ??????????# *%[s s ##### | | ??????????# #####g = #######+###+#???? | | ??????????????????# %%* #???????????????? | | ??????????????????#@ != #???????????????# | | ??????????????????#==!![[#???????????????### | | ??????????????????########?????????????????? | | ???????????????????????????????????????????? | | ???????????????????????????????????????????? | | ???????????????????????????????????????????? | | ???????????????????????????????????????????? | | ??????????????????????????????????????????## | | ?????????????????????????#######??????????#| | | ?????????????????????????# ############ | | ??????????????????######## ##] | | ??????????????????# + *=! ## | | ??????????????????# # =% ## | | ??????????????????# # ####### ## | | ??????????????????# # ####?????# ## | | ??????????????????# # #????????# ## | | ??????????????????# # #???????## ## | | ??????????????????# + #???????# ## | | ??????????????????# # #???????# | | ??????????????????# # #####???# T | | ??????????????????# # !!#???# | | ??????????????????# # !#???# ## | | ??????????????????# ] # #???## ##? | | ??????????????????# # #????# #?? | | ??????????????????######## [#????# #?? | +----------------------------------------------------+ Best States ------------- Heat Dissipation 25 Energy Generation 10 Energy Capacity 125 Matter Stores 300 Matter Capacity 300 Sight Range 18 Terrain Scan Density 10 Evasion (%) 62 Armor Integrity Analysis 33 Item Schematics ----------------- None Robot Schematics ------------------ None Fabricated ------------ Nothing Alien Tech Used ----------------- None Achievements -------------- None Challenges ------------ None Game ------ Seed ArmageddonSensorUnit Manual? 0 Play Time 00:16:02 Cumulative 5.7 hours Start 2020.06.04 @ 17:38:41 End 2020.06.04 @ 17:55:17 Sessions 1 Manual Loads 0 Difficulty Rogue Special Mode None Game No. 7 Rogue 3 Adventurer 4 Explorer 0 Win Type - Total 0 Types 0/0/0/0/0/0/0 Lore% 2 Gallery% 11 Achievement% 7 Wizard Run 0 Options --------- ASCII 1 Keyboard 0 Movement Mouse Keybinds 0 Fullscreen 1 Font 12/Fuzzy Map View 83x54 Tactical HUD 0 Map Filters NONE Filters NONE Steam 1 RUN: 6a395b8a-ed37-47ac-89c5-31073ba5f554